Cogmind - Beta 15 @@@ ROGUE MODE // 2025.06.18 @ 00:03:02 Player: kim.jet.wav Result: Destroyed by E3-QIS(g) with Salvaging Laser Performance ------------- Evolutions (0) 0 Regions Visited (3) 600 Robots Destroyed (4) 20 Value Destroyed (27) 27 Prototype IDs (8) 160 Alien Tech Used (0) 0 Bonus (656) 656 TOTAL SCORE: 1463 Bonus ------- Registered with UFD 300 Met Optimus in HQ 500 Friendly Fire -144 Cogmind --------- Core Integrity 0/250 Matter 295/300 Energy 94/100 System Corruption 1% Temperature Cool (22) Movement Core (100) Ox1 Location -9/Scraptown Parts ------- > --- POWER (1) -------- (None) > --- PROPULSION (2) --- (None) > --- UTILITY (2) ------ Small Storage Unit A0-MCA's Component Scanner > --- WEAPON (2) ------- (None) > --- INVENTORY (8) ---- Light Ion Engine Subdweller Optics Seismic Detector Hacking Suite Datajack DRS Beacon (Ready) Peak State ------------ > --- POWER ------------ Light Ion Engine > --- PROPULSION ------- Aluminum Leg Aluminum Leg > --- UTILITY ---------- Small Storage Unit A0-MCA's Component Scanner > --- WEAPON ----------- EM Pulse Gun Medium Laser > --- INVENTORY -------- Light Ion Engine Subdweller Optics Seismic Detector Hacking Suite Datajack DRS Beacon [Rating: 16] Favorites ----------- Power Light Ion Engine Engine Light Ion Engine Propulsion Aluminum Leg Leg Aluminum Leg Utility Small Storage Unit Device Seismic Detector Storage Small Storage Unit Processor A0-MCA's Component Scanner Weapon EM Pulse Gun Energy Gun EM Pulse Gun Build | -11 -10 -10 -9 ------- Run | Yrd Mat Sub Scr Slots Evolved . | . . . . Power . | . . . . Propulsion . | . . . . Utility . | . . . . Weapon . | . . . . Parts Attached 8 | 7 . . 1 Power 1 | 1 . . . Engine 1 | 1 . . . Core . | . . . . Reactor . | . . . . Propulsion 2 | 2 . . . Treads . | . . . . Leg 2 | 2 . . . Wheel . | . . . . Hover . | . . . . Flight . | . . . . Utility 3 | 2 . . 1 Device 1 | 1 . . . Storage 1 | 1 . . . Processor 1 | . . . 1 Hackware . | . . . . Protection . | . . . . Artifact . | . . . . Weapon 2 | 2 . . . Energy Gun 2 | 2 . . . Energy Cannon . | . . . . Ballistic Gun . | . . . . Ballistic Cannon . | . . . . Launcher . | . . . . Special Weapon . | . . . . Impact Weapon . | . . . . Slashing Weapon . | . . . . Piercing Weapon . | . . . . Special Melee Weapon . | . . . . Unidentified Prototypes . | . . . . Parts Lost 5 | . . . 5 Power 1 | . . . 1 Propulsion 2 | . . . 2 Utility . | . . . . Weapon 2 | . . . 2 Highest Loss Streak 5 | . . . 5 To Critical Strikes . | . . . . Average Backups 5 | . 2 3 6 Power . | . 1 1 1 Propulsion . | . . . . Utility 1 | . . 1 2 Weapon 1 | . . . 1 Tool/Special . | . . . . Unused Backups 4 | . . . 4 Power 1 | . . . 1 Propulsion . | . . . . Utility 2 | . . . 2 Weapon . | . . . . Tool/Special 1 | . . . 1 Average Slot Usage (%) 75 | . 100 100 71 Engine 14 | . 14 14 14 Leg 28 | . 28 28 28 Device 12 | . 14 14 11 Storage 14 | . 14 14 14 Processor 1 | . . . 2 Energy Gun 4 | . 28 28 . Peak Build Rating 16 | 7 7 7 16 Average Rating 6 | 5 7 7 6 On Entrance 5 | . 7 7 7 Naked Turns . | . . . . Heaviest Build 13 | 13 13 13 13 Greatest Support 20 | 20 20 20 20 Greatest Overweight (x) 3 | 3 . . . Average Overweight (x) . | . . . . Largest Inventory Capacity 8 | 8 8 8 8 Average Capacity 7 | 7 8 8 8 Most Carried 8 | 2 3 4 8 Average Carried 5 | 1 2 3 6 Final Capacity 8 | 8 8 8 8 Final Carried 6 | 1 3 4 6 Class Distribution -------------------- 100% | Mutant Dominant Class ---------------- Mutant | -10/Materials Mutant | -10/Subcaves Mutant | -9/Scraptown Resources | -11 -10 -10 -9 ----------- Run | Yrd Mat Sub Scr Matter Collected 270 | 270 . . . Remotely . | . . . . Salvage Created 159 | 159 . . . Parts 11 | 11 . . . Haulers Intercepted . | . . . . Recyclers Shooed 1 | 1 . . . Parts Field Recycled . | . . . . Retrieved Matter . | . . . . Parts Self-Destructed 9 | . . 9 . Prevented . | . . . . Kills | -11 -10 -10 -9 ------- Run | Yrd Mat Sub Scr Combat Hostiles Destroyed . | . . . . Classes Destroyed 2 | 2 . . . Tunneler 3 | 3 . . . Recycler 1 | 1 . . . Best Kill Streak 2 | 2 . . . Combat Bots Only . | . . . . Max Kills in Single Turn 1 | 1 . . . Gunslinging . | . . . . Exploded . | . . . . Melee . | . . . . Uniques/NPCs Destroyed . | . . . . Combat | -11 -10 -10 -9 -------- Run | Yrd Mat Sub Scr Hostile Shots Fired 51 | . . . 51 Missed 12 | . . . 12 Hits 39 | . . . 39 Projectile 39 | . . . 39 Part Disruptions 1 | . . . 1 Damage Taken 655 | . . . 655 Core 256 | . . . 256 Absorbed by Shields . | . . . . Core Remaining (%) 100 | 100 . . . Volleys Fired 19 | 7 . 1 11 Largest 2 | 2 . 2 2 Hottest 90 | 90 . 90 90 Shots Fired 28 | 14 . 2 12 Gun 28 | 14 . 2 12 Cannon . | . . . . Launcher . | . . . . Special . | . . . . Kinetic . | . . . . Thermal 9 | 7 . 1 1 Explosive . | . . . . Electromagnetic 19 | 7 . 1 11 Robot Hit Streak 13 | 5 . 1 13 Robot Miss Streak 2 | 2 . 1 . Penetration Max . | . . . . Secondary Targets . | . . . . Shots Hit Robots 22 | 9 . 1 12 Core Hits 8 | 5 . . 3 Critical Kills . | . . . . Critical Parts Destroyed . | . . . . Critical Strikes 2 | 2 . . . Burn 1 | 1 . . . Corrupt 1 | 1 . . . Melee Attacks . | . . . . Impact . | . . . . Slashing . | . . . . Piercing . | . . . . Sneak Attacks . | . . . . Combat Hostiles . | . . . . Follow-up Attacks . | . . . . Damage Inflicted 314 | 189 . 12 113 Guns 242 | 117 . 12 113 Cannons . | . . . . Explosions 72 | 72 . . . Melee . | . . . . Ramming . | . . . . Kinetic . | . . . . Thermal 147 | 122 . 12 13 Explosive . | . . . . Electromagnetic 167 | 67 . . 100 Impact . | . . . . Slashing . | . . . . Piercing . | . . . . Highest Corruption 1 | . . . 1 Average Corruption 1 | . . . 1 Corruption Purged . | . . . . Corruption Blocked . | . . . . Overload Shots . | . . . . Overflow Damage 2 | 2 . . . Projectiles . | . . . . Explosions 2 | 2 . . . Melee . | . . . . Knockbacks . | . . . . Impact . | . . . . Kinetic . | . . . . Secondary . | . . . . Self-Inflicted Damage . | . . . . Shots . | . . . . Rammed . | . . . . Targets Rammed . | . . . . Kicked . | . . . . Crushed . | . . . . Highest Temperature 150 | 150 . . 41 Average Temperature 52 | 60 . . 17 Received Heat Transfer 42 | . . . 42 Siege Activations . | . . . . Martial Activations . | . . . . Shielding Activations . | . . . . Robots Disrupted . | . . . . Combat Hostiles . | . . . . Robots Corrupted . | . . . . Combat Hostiles . | . . . . Parts Fried . | . . . . Impact Corruptions . | . . . . Robots Melted . | . . . . Combat Hostiles . | . . . . Parts Melted . | . . . . Heat Transferred 384 | 322 . 37 25 Parts Sabotaged . | . . . . Parts Stolen . | . . . . Parts Stripped . | . . . . Power Chain Reactions 2 | 2 . . . Alert | -11 -10 -10 -9 ------- Run | Yrd Mat Sub Scr Maximum Alert Level . | . . . . Low Security (%) 100 | 100 100 . . Level 1 . | . . . . Level 2 . | . . . . Level 3 . | . . . . Level 4 . | . . . . Level 5 . | . . . . High Security . | . . . . Max Security . | . . . . Peak Influence 10 | 10 10 . . Initial . | . . . . Average . | . . . . Influence Increases 30 | 20 10 . . Destroy 0b10 Robot/NC 20 | 20 . . . Successful Hack 10 | . 10 . . Influence Decreases 30 | 20 10 . . Time Decay 30 | 20 10 . . Squads Dispatched . | . . . . Investigation . | . . . . Extermination . | . . . . Reinforcement . | . . . . Assault . | . . . . Garrison . | . . . . Intercept . | . . . . Searches Triggered . | . . . . Construction Impeded . | . . . . Haulers Reinforced . | . . . . Active Scanning Responses . | . . . . Cargo Convoy Interrupts . | . . . . Stealth | -11 -10 -10 -9 --------- Run | Yrd Mat Sub Scr Distress Signals 1 | . 1 . . Communications Jammed . | . . . . Distress Signals . | . . . . Times Spotted 15 | . 3 2 10 Peak Tracking Total 9 | . 2 2 9 Tactical Retreats . | . . . . Traps | -11 -10 -10 -9 ------- Run | Yrd Mat Sub Scr Traps Triggered . | . . . . Indirectly . | . . . . Trap Hack Attempts . | . . . . Triggered . | . . . . Disarmed . | . . . . Reprogrammed . | . . . . Reused . | . . . . Traps Extracted . | . . . . Installed . | . . . . Triggered . | . . . . Machines | -11 -10 -10 -9 ---------- Run | Yrd Mat Sub Scr Machines Disabled . | . . . . Max in Single Turn . | . . . . Machines Repaired . | . . . . Machines Dismantled . | . . . . Machines Sabotaged . | . . . . Overloaded Fab Kills . | . . . . Hacking | -11 -10 -10 -9 --------- Run | Yrd Mat Sub Scr Machines Accessed 8 | . 1 . 7 Terminals 1 | . 1 . . Fabricators . | . . . . Repair Stations . | . . . . Recycling Units . | . . . . Scanalyzers . | . . . . Garrison Access . | . . . . Total Hacks 30 | . 3 . 27 Successful 29 | . 2 . 27 Failed 1 | . 1 . . Catastrophic . | . . . . Database Lockouts . | . . . . Manual 2 | . 1 . 1 Terminals 3 | . 3 . . Fabricators . | . . . . Repair Stations . | . . . . Recycling Units . | . . . . Scanalyzers . | . . . . Garrison Access . | . . . . Terminal Hacks 29 | . 2 . 27 Record 21 | . . . 21 Robot Analysis 6 | . . . 6 Emergency Access Points 1 | . 1 . . Zone Layout 1 | . 1 . . Fabricator Hacks . | . . . . Repair Station Hacks . | . . . . Recycling Unit Hacks . | . . . . Scanalyzer . | . . . . Garrison Access Hacks . | . . . . Unauthorized Hacks . | . . . . Terminals . | . . . . Fabricators . | . . . . Repair Stations . | . . . . Recycling Units . | . . . . Scanalyzers . | . . . . Garrison Access . | . . . . Data Cores Recovered 1 | . 1 . . Used . | . . . . Hacking Detections 1 | . 1 . . Full Trace Events . | . . . . Feedback Events . | . . . . Feedback Blocked . | . . . . Robot Schematics Acquired . | . . . . Robots Built . | . . . . Authchips . | . . . . Time . | . . . . Total Robot Build Rating . | . . . . Part Schematics Acquired . | . . . . Parts Built . | . . . . Authchips . | . . . . Time . | . . . . Total Part Build Rating . | . . . . Parts Repaired . | . . . . Time . | . . . . Parts Recycled . | . . . . Recycled Matter . | . . . . Retrieved Matter . | . . . . Retrieved Components . | . . . . Parts Scanalyzed . | . . . . Part Schematics Acquired . | . . . . Parts Damaged . | . . . . Bothacking | -11 -10 -10 -9 ------------ Run | Yrd Mat Sub Scr Used RIF Installer . | . . . . Robots Hacked . | . . . . Non-combat . | . . . . Combat . | . . . . Robot Hacks Applied . | . . . . Relay Couplers Released . | . . . . Fabnet Peak Effective % . | . . . . Robots Rewired . | . . . . Allies Hacked . | . . . . Hacks Repelled . | . . . . Allies | -11 -10 -10 -9 -------- Run | Yrd Mat Sub Scr Total Allies . | . . . . Largest Group . | . . . . Highest-Rated Group . | . . . . Highest-Rated Ally . | . . . . Total Orders . | . . . . Ally Attacks . | . . . . Total Damage . | . . . . Kills . | . . . . Allies Corrupted . | . . . . Allies Melted . | . . . . Intel | -11 -10 -10 -9 ------- Run | Yrd Mat Sub Scr Active Infowar (turns) 2101 | 8 66 311 1716 Seismic 2101 | 8 66 311 1716 Robot Analysis Total 6 | . . . 6 Derelict Logs Recovered 2 | . . 2 . Drone Launches . | . . . . Drone Recoveries . | . . . . Exploration | -11 -10 -10 -9 ------------- Run | Yrd Mat Sub Scr Turns Passed 2575 | 132 66 311 2066 Spaces Moved 2015 | 79 38 230 1668 Core 19 | 19 . . . Treads . | . . . . Legs 1996 | 60 38 230 1668 Wheels . | . . . . Hover . | . . . . Flight . | . . . . Fastest Speed 50 | 50 120 120 120 Average Speed 120 | 122 120 120 120 Slowest Speed 200 | 200 120 120 120 Overloaded Moves . | . . . . Propulsion Burnouts . | . . . . Robots Hopped . | . . . . Potential Cave-ins . | . . . . Cave-ins Triggered . | . . . . Exploration Rate (%) 33 | 5 10 26 91 Regions Visited 3 Branch Regions 2 Pre-discovered Areas 2 | . . 2 . Known Exits Taken . | . . . . Unknown Exits Taken 3 | 1 1 1 . Scrap Searched 2 | . . . 2 Spaces Dug . | . . . . Terrain Destroyed 10 | 10 . . . Melee . | . . . . Projectile . | . . . . AOE 10 | 10 . . . Terrain Rammed . | . . . . Walls Destroyed . | . . . . Machines Disabled . | . . . . Actions | -11 -10 -10 -9 --------- Run | Yrd Mat Sub Scr Total 2139 | 97 58 263 1721 Wait 89 | 3 19 32 35 Move 2012 | 78 37 229 1668 Hop . | . . . . Pick Up 7 | 2 2 1 2 Fast Attach 6 | 6 . . . Attach 3 | 1 . . 2 Detach 2 | . . . 2 Swap 1 | . . . 1 Drop . | . . . . Fire 19 | 7 . 1 11 Melee . | . . . . Ram . | . . . . Kick . | . . . . Crush . | . . . . Escape Stasis . | . . . . Rewire . | . . . . Trap . | . . . . Miscellaneous . | . . . . Route ------- -11/Scrapyard -10/Materials -10/Subcaves -9/Scraptown (discovered 1 exit: [*Fac]) History --------- Turn | Location | Event 5 | -11/Scrapyard | Discovered new exit (range 15) 133 | -11/Scrapyard | Entered Materials 134 | -10/Materials | Met a group of wandering Federalists 178 | -10/Materials | Discovered new exit (range 4) 199 | -10/Materials | Entered Subcaves 199 | -10/Subcaves | Accompanied by 2 allies 200 | -10/Subcaves | Continued accompanying wandering Federalists (6) 315 | -10/Subcaves | Build established: Mutant 319 | -10/Subcaves | Learned location of Zion (-7) 473 | -10/Subcaves | Wandering Federalist uncovered a shortcut to Scraptown 510 | -10/Subcaves | Entered Scraptown 742 | -9/Scraptown | Visited SPCMW 990 | -9/Scraptown | Visited Junk Repository 1013 | -9/Scraptown | Visited Red Mages 1062 | -9/Scraptown | Visited CPS Storage 1085 | -9/Scraptown | Visited Assassins FH 1232 | -9/Scraptown | Discovered new exit (range 5) 1592 | -9/Scraptown | Visited UFD Registry 1608 | -9/Scraptown | Visited The Evicted 1696 | -9/Scraptown | Registered with UFD as "Matterskull" 1809 | -9/Scraptown | Visited Abandonware Association 1832 | -9/Scraptown | Learned abandonware demo "HACKBUD.EXE" 1832 | -9/Scraptown | Learned abandonware demo "TRNCOAT.EXE" 1864 | -9/Scraptown | Visited Analyses Database 2080 | -9/Scraptown | Visited Curators Association 2135 | -9/Scraptown | Visited Derelict Rescue Squad 2144 | -9/Scraptown | Found DRS Beacon 2169 | -9/Scraptown | Visited DA-N13 Charitable Foundation 2212 | -9/Scraptown | Visited A0-MCA Data Center 2219 | -9/Scraptown | Given a B- rating by A0-MCA 2223 | -9/Scraptown | Found A0-MCA's Component Scanner 2262 | -9/Scraptown | Visited LU-1G1's Boring Crew 2315 | -9/Scraptown | Visited Scrap Suit Storage 2461 | -9/Scraptown | Met Optimus 2461 | -9/Scraptown | Accepted into 0bPrime 2527 | -9/Scraptown | Civil war broke out across Scraptown 2567 | -9/Scraptown | Attacked by Scraptown defenders 2571 | -9/Scraptown | Core integrity fell below 50% 2576 | -9/Scraptown | Destroyed by E3-QIS(g) with Salvaging Laser Last Messages --------------- 02549_ RR-VSG(E) destroyed. 02549_ HV Slug penetrates Machine. 02554_ L3-WCK(h) heat damages Imp. Target Analyzer. 02554_ L3-WCK(h) destroyed. 02554_ Bolt penetrates KX-KGX(j). 02562_ 9O-XB1(p) suffers critical hit (Destroy). 02564_ 9O-XB1(p) destroyed. 02569_ E3-QIS(g): "We are one!" 02570_ E3-QIS(g): "Matterskull is with the other side!" 02570_ Lgt. Ion Engine destroyed. 02571_ Penetrated by Slug. 02571_ Aluminum Leg destroyed. 02572_ EM Pulse Gun destroyed. 02573_ Penetrated by Slug. 02574_ Med. Laser destroyed. 02574_ RO-9O3(E) IFF system glitched. 02575_ Penetrated by Bolt. 02575_ Aluminum Leg destroyed. 02575_ Penetrated by Bolt. 02576_ Penetrated by Slug. Map ----- +----------------------------------------------------+ | ?????????????????????????????????????????????????? | | ?????????????????????????????????????????????????? | | ?????????????????????????????????????????????????? | | ?????????????????????????????????????????????????? | | ?????????????????????????????????????????????????? | | ?????????????????????????????????????????????????? | | ?????????????????????????????????????????????????? | | ?????????????????????????????????????????????????? | | ?????????????????????????????????????????????????? | | ?###########??#########? ???????????????????????? | | ?# # # #?#"""""""""# ???????????????????????? | | ?# # """ # #?#"""""""""# ???????????????????????? | | ?# # "#" # #?#"""""""""# #??????????????????????? | | ?# # """ # #?#"""""""""# E#??????????????????????? | | ?# #?#""" """# #??????????????????????? | | ?# ####### #?#""" """# #??"? ???????????????? | | ?# # # #?#"!" """# #""" ????????????????? | | ?# # # #?#""" """"# ;""& ?????????????????? | | ?# # # #?#""" """# #""" ??????????????????? | | ?# #?# "# # ???????????????????? | | ?##### #####?##### ##### ## #???????????????????? | | ###### ########### ##### ## ##??????????????????? | | """""" """"""""""" """"" " "#########??????????? | | E E "## #??????????? | | "## $ #??????????? | | @ ## #??????????? | | [ = ## ###??????????? | | !%! [*=%!% ###??????????? | | """"""""""""" """"""""" ##!! #??????????? | | """"""""""""""""""""""" "## $ #??????????? | | #### ################"" "## #??????????? | | ##????????#"" "##############?????? | | X"#????????#"" "## """"""""#?????? | | "" "" ##????????#"" ## " " " "#?????? | | "" "" X"#??????###" % ![ ## ""#?????? | | " " ######### #" =[%! "## &"#?????? | | "" =!=g *% &"#?????? | | "" [! [## &"#?????? | | " " ######### #"" ## " " " "#?????? | | "" "" ""#??????###"" ## """"""""#?????? | | "" "" ##????????#"" "##############?????? | | X"#????????#"" "#??????????????????? | | ##????????#"" "#??????????????????? | | #### ################"" "####?###?###???????? | | """""""""""""""""""""""" "##"###"###"#???????? | | """""""""""""""""""""""" "=" "!" #???????? | | "## """ """ ###?????? | | "## "#?????? | | "## ""##?????? | | ## "!#??????? | +----------------------------------------------------+ Best States ------------- Heat Dissipation 25 Energy Generation 10 Energy Capacity 125 Matter Stores 300 Matter Capacity 300 Sight Range 16 Terrain Scan Density 10 Evasion (%) 55 Item Schematics ----------------- None Robot Schematics ------------------ None Fabricated ------------ Nothing Repaired ---------- Nothing Alien Tech Used ----------------- None Achievements -------------- Armchair Analyst Challenges ------------ None Game ------ Seed MissileRagnarokPower Manual? 0 Play Time 01:12:24 Cumulative 36.0 hours Start 2025.06.17 @ 20:48:01 End 2025.06.18 @ 00:03:02 Sessions 1 Manual Loads 0 Difficulty Rogue Special Mode None Game No. 190 Rogue 190 Adventurer 0 Explorer 0 Win Type - Total 0 Types 0/0/0/0/0/0/0/0/0/0 Lore% 19 Gallery% 17 Achievement% 18 Wizard Run 0 Options --------- Layout 0 ASCII 1 Keyboard 1 Movement Numpad Keybinds 1 Fullscreen 1 Font 18/X11 Map View 76x50 Zoom Use 0% Tactical HUD 1 Map Filters NONE Filters NONE Steam 1 RUN: e618c91d-d1e3-40c8-954e-917249b3d9b9